bitfinex-derivatives/quotes_BTCF0:USTF0_20250902
["timestamp","ask_amount","ask_price","bid_price","bid_amount"]
[1756774727083,0.43576132,109080.0,109070.0,0.39143551]
[1756774727286,0.3608,109080.0,109070.0,0.39143551]
[1756774727689,0.3608,109080.0,109070.0,0.63118753]
[1756774728389,0.3608,109080.0,109070.0,0.88118753]
[1756774728585,0.3608,109080.0,109070.0,0.64143551]
[1756774729091,0.3608,109080.0,109070.0,0.73311141]
[1756774729279,0.3608,109080.0,109070.0,0.97286343]
[1756774729982,0.43304218,109100.0,109090.0,0.08324]
[1756774730187,0.3608,109100.0,109090.0,1.408422]
[1756774730386,0.51742127,109110.0,109100.0,0.0969]
[1756774730692,0.51742127,109110.0,109100.0,0.576202]
[1756774731888,0.52652534,109110.0,109100.0,0.576202]
[1756774732292,0.51742127,109110.0,109100.0,0.576202]
[1756774732481,0.37899609,109110.0,109100.0,0.576202]
[1756774734088,0.37899609,109110.0,109100.0,0.33655276]
[1756774734590,0.45329165,109110.0,109100.0,0.33655276]
[1756774740399,0.45329165,109110.0,109100.0,0.0969]
[1756774740589,1.18259717,109110.0,109090.0,0.06006]
[1756774740795,1.18259717,109110.0,109080.0,0.44673026]
[1756774740796,0.60045276,109100.0,109080.0,0.91805026]
[1756774740995,0.60045276,109090.0,109080.0,0.8521358]
[1756774741192,0.60045276,109090.0,109080.0,0.8158458]
[1756774741892,0.3608,109090.0,109080.0,0.8521358]
[1756774742089,0.38180726,109090.0,109080.0,0.8521358]
[1756774746102,0.3608,109090.0,109080.0,0.8521358]
[1756774749001,0.3608,109090.0,109080.0,1.09178856]
[1756774751111,0.38181677,109090.0,109080.0,1.09178856]
[1756774751910,0.3608,109090.0,109080.0,1.09178856]
[1756774753014,0.3608,109090.0,109080.0,1.18822856]
[1756774753204,0.3608,109090.0,109080.0,1.25414302]
[1756774753405,0.3608,109090.0,109080.0,1.18822856]
[1756774754207,0.3608,109090.0,109080.0,1.25414302]
[1756774755515,0.3608,109090.0,109080.0,1.25410302]
[1756774758619,0.3608,109100.0,109090.0,0.03713]
[1756774758917,0.60045276,109100.0,109090.0,0.08268]
[1756774759616,0.3608,109100.0,109090.0,0.08268]
[1756774759817,0.60045276,109100.0,109090.0,0.08268]
[1756774760613,0.3608,109100.0,109090.0,0.08268]
[1756774760813,0.60045276,109100.0,109090.0,0.08268]
[1756774761917,0.3608,109100.0,109090.0,0.08268]
[1756774762119,0.8403148,109100.0,109090.0,0.08268]
[1756774762423,0.86135165,109100.0,109090.0,0.08268]
[1756774763512,0.86135165,109100.0,109080.0,0.3053232]
[1756774763719,0.6005574,109090.0,109080.0,0.3053232]
[1756774763920,0.6005574,109090.0,109080.0,0.3424532]
[1756774766928,0.6005574,109090.0,109080.0,0.40836766]
[1756774768130,0.3608,109090.0,109080.0,0.40836766]
[1756774768430,0.6005574,109090.0,109080.0,0.40836766]
[1756774768730,0.6005574,109090.0,109080.0,0.16861026]
[1756774769028,0.6005574,109090.0,109080.0,0.40836766]
[1756774769729,0.3608,109090.0,109080.0,0.40836766]
[1756774769924,0.6005574,109090.0,109080.0,0.40836766]
[1756774782442,0.6005574,109090.0,109080.0,0.3424532]
[1756774783335,0.6005574,109090.0,109080.0,0.40848864]
[1756774785837,0.6005574,109090.0,109080.0,0.64824604]
[1756774786841,0.6005574,109090.0,109080.0,0.40848864]
[1756774787046,0.6005574,109090.0,109080.0,0.3424532]
[1756774788341,0.6005574,109090.0,109080.0,0.16873136]
[1756774788842,0.6005574,109090.0,109080.0,0.40848876]
[1756774789142,0.6005574,109090.0,109080.0,0.3424532]
[1756774789341,0.6005574,109090.0,109080.0,0.40849095]
[1756774789635,0.6005574,109090.0,109080.0,0.16873355]
[1756774789841,0.6005574,109090.0,109080.0,0.40849095]
[1756774790142,0.6005574,109090.0,109080.0,0.3424532]
[1756774790942,0.6005574,109090.0,109080.0,0.3224374]
[1756774791942,0.3608,109090.0,109080.0,0.38847528]
[1756774792144,0.6005574,109090.0,109080.0,0.38847528]
[1756774792539,0.3608,109090.0,109080.0,0.38847528]
[1756774792747,0.3608,109100.0,109080.0,1.04356948]
[1756774792946,0.02107689,109100.0,109090.0,1.7653548]
[1756774793340,0.02107689,109100.0,109090.0,1.8570139]
[1756774793644,0.02107689,109100.0,109090.0,1.6172565]
[1756774794547,0.02107689,109100.0,109090.0,1.8672565]
[1756774795242,1.52041296,109110.0,109090.0,1.93329438]
[1756774795440,1.54148533,109110.0,109100.0,0.3349174]
[1756774795950,1.30172793,109110.0,109100.0,0.33482702]
[1756774797949,0.45616793,109110.0,109100.0,0.33482702]
[1756774799254,0.43509556,109110.0,109100.0,0.33482702]
[1756774799746,0.67476258,109110.0,109100.0,0.04689]
[1756774799946,0.69581624,109110.0,109100.0,0.04689]
[1756774800347,0.94581624,109110.0,109090.0,0.08076]
[1756774800540,0.23966702,109100.0,109090.0,0.50827]
[1756774800851,0.60046702,109100.0,109090.0,0.56648]
[1756774803545,0.60046702,109100.0,109090.0,0.50827]
[1756774803741,0.85046702,109100.0,109090.0,0.48572]
[1756774804154,0.6108,109100.0,109090.0,0.48572]
[1756774804356,0.85046702,109100.0,109090.0,0.48572]
[1756774805356,0.85046702,109100.0,109080.0,0.14585788]
[1756774805554,0.60046702,109090.0,109080.0,0.14585788]
[1756774806558,1.20476,109100.0,109080.0,0.3516549]
[1756774806750,1.20476,109100.0,109090.0,0.32356702]
[1756774807452,0.3608,109100.0,109090.0,0.0839]
[1756774808148,1.27897556,109110.0,109100.0,0.01389]
[1756774808350,0.45613738,109110.0,109100.0,0.33745702]
[1756774808960,0.45613738,109110.0,109100.0,0.09779]
[1756774811961,0.43509556,109110.0,109100.0,0.09779]
[1756774815161,0.43509556,109110.0,109100.0,0.33745702]
[1756774815463,0.43509556,109110.0,109100.0,0.09779]
[1756774817066,0.43509556,109110.0,109100.0,0.33745702]
[1756774818861,0.43509556,109110.0,109100.0,0.04693]
[1756774819067,0.67476258,109110.0,109100.0,0.04693]
[1756774819265,0.43509556,109110.0,109100.0,0.0839]
[1756774819460,0.43509556,109110.0,109100.0,0.09779]
[1756774819867,0.67476258,109110.0,109100.0,0.09779]
[1756774820164,0.67476258,109110.0,109100.0,0.16382788]
[1756774825173,0.43509556,109110.0,109100.0,0.16382788]
[1756774829870,0.43509556,109110.0,109100.0,0.11296788]
[1756774830073,0.43509556,109110.0,109100.0,0.14993788]
[1756774830967,0.67476258,109110.0,109100.0,0.14993788]
[1756774832277,0.67476258,109110.0,109100.0,0.0839]
[1756774832477,0.43509556,109110.0,109100.0,0.0839]
[1756774834472,0.67476258,109110.0,109100.0,0.0839]
[1756774835083,0.43509556,109110.0,109100.0,0.0839]
[1756774835380,0.67476258,109110.0,109100.0,0.0839]
[1756774836579,0.43509556,109110.0,109100.0,0.0839]
[1756774836765,0.43509556,109110.0,109100.0,0.10439426]
[1756774838478,0.67476258,109110.0,109100.0,0.10439426]
[1756774839980,0.6957653,109110.0,109100.0,0.10439426]
[1756774841977,0.94582852,109110.0,109090.0,0.04612]
[1756774842177,0.60053024,109100.0,109090.0,0.11215788]
[1756774842583,0.60053024,109100.0,109090.0,0.38779812]
[1756774843974,0.3608,109100.0,109090.0,0.38779812]
[1756774844883,0.3608,109100.0,109090.0,0.32176024]
[1756774845485,0.3608,109100.0,109090.0,0.08203]
[1756774845781,0.3608,109100.0,109090.0,0.32176024]
[1756774846080,0.3608,109100.0,109090.0,0.32172067]
[1756774846276,0.43509556,109110.0,109100.0,0.0968]
[1756774847487,0.43509556,109110.0,109100.0,0.16280394]
[1756774847787,0.43509556,109110.0,109100.0,0.40249461]
[1756774847986,0.43509556,109110.0,109100.0,0.16280394]
[1756774853889,0.43509556,109110.0,109100.0,0.40249461]
[1756774855396,0.43509556,109110.0,109100.0,0.49414541]
[1756774855589,0.37910768,109120.0,109110.0,0.03591]
[1756774855785,0.40011403,109120.0,109110.0,0.32172067]
[1756774857481,0.37910768,109120.0,109110.0,0.38772461]
[1756774857691,0.37910768,109120.0,109110.0,1.23112461]
[1756774858095,0.37910768,109120.0,109110.0,1.16512067]
[1756774858586,0.45181301,109120.0,109110.0,0.92543]
[1756774858995,0.45181301,109120.0,109110.0,1.16512067]
[1756774861198,0.45181301,109120.0,109110.0,0.92543]
[1756774861398,0.45181301,109120.0,109110.0,1.16512067]
[1756774862703,0.01830768,109120.0,109110.0,1.85725374]
[1756774862998,0.37923698,109130.0,109110.0,2.22899008]
[1756774863199,0.37923698,109130.0,109120.0,0.41335467]
[1756774863899,0.37923698,109130.0,109120.0,0.32172067]
[1756774864503,0.37923698,109130.0,109120.0,0.41335467]
[1756774864800,0.37923698,109130.0,109120.0,0.32172067]
[1756774865793,1.7332241,109130.0,109100.0,0.16503394]
[1756774866102,0.60049067,109110.0,109100.0,0.09903]
[1756774866304,0.60049067,109110.0,109100.0,0.16503394]
[1756774866492,0.3608,109110.0,109100.0,0.16503394]
[1756774866892,0.3608,109110.0,109100.0,0.09903]
[1756774868000,0.3608,109110.0,109100.0,0.33872067]
[1756774869801,0.3608,109110.0,109100.0,0.09903]
[1756774872015,0.3608,109110.0,109100.0,0.16503394]
[1756774872211,0.3608,109110.0,109100.0,0.40472461]
[1756774882028,0.3608,109110.0,109100.0,0.33872067]
[1756774884634,0.45085428,109120.0,109110.0,0.08426]
[1756774884822,0.47183854,109120.0,109110.0,1.16723067]
[1756774885018,0.96152921,109120.0,109100.0,0.96248705]
[1756774885221,0.3608,109110.0,109100.0,0.96248705]
[1756774887336,0.3608,109110.0,109100.0,1.20217772]
[1756774887535,0.3608,109110.0,109100.0,0.96248705]
[1756774890836,0.87147478,109110.0,109100.0,0.06795705]
[1756774891034,0.85049067,109110.0,109100.0,0.06795705]
[1756774891234,0.87147467,109110.0,109090.0,0.9275]
[1756774891532,0.3608,109100.0,109090.0,0.9275]
[1756774892136,0.3608,109100.0,109090.0,0.99350394]
[1756774892441,0.3608,109100.0,109090.0,0.9275]
[1756774893528,0.3608,109100.0,109090.0,0.99350394]
[1756774894741,0.36990323,109100.0,109090.0,0.99350394]
[1756774895142,0.36990323,109100.0,109090.0,1.23319461]
[1756774895343,0.36990323,109100.0,109090.0,0.99350394]
[1756774895637,0.3608,109110.0,109100.0,0.01373]
[1756774895943,0.3608,109110.0,109100.0,0.09604]
[1756774896142,0.3608,109110.0,109100.0,0.33573067]
[1756774896942,0.3608,109110.0,109100.0,0.09604]
[1756774897139,0.37006408,109110.0,109100.0,0.09604]
[1756774897345,0.85975475,109110.0,109100.0,0.89181]
[1756774898044,0.85975475,109110.0,109100.0,0.92599]
[1756774899247,0.85975475,109110.0,109100.0,0.08231]
[1756774901450,0.85975475,109110.0,109100.0,0.09604]
[1756774902853,0.62006408,109110.0,109100.0,0.09604]
[1756774903551,0.45085428,109120.0,109110.0,0.08231]
[1756774903850,0.47182627,109120.0,109110.0,1.16552067]
[1756774904550,0.45085428,109120.0,109110.0,1.16552067]
[1756774910650,0.45085428,109120.0,109110.0,0.08231]
[1756774910651,0.69054495,109120.0,109110.0,0.08231]
[1756774910845,0.69054495,109120.0,109110.0,0.04813]
[1756774911252,1.05134495,109120.0,109110.0,0.08231]
[1756774912052,0.83261242,109120.0,109110.0,0.08231]
[1756774912353,1.07230309,109120.0,109110.0,0.08231]
[1756774912652,1.05134495,109120.0,109110.0,0.08231]
[1756774912852,1.0723035,109120.0,109110.0,0.08231]
[1756774913046,1.05134495,109120.0,109110.0,0.08231]
[1756774916059,1.05134495,109120.0,109110.0,0.04813]
[1756774916953,1.89486495,109120.0,109110.0,0.04813]
[1756774917763,1.65517428,109120.0,109110.0,0.08231]
[1756774917966,1.89486495,109120.0,109110.0,0.08231]
[1756774919063,1.91486495,109120.0,109110.0,0.08231]
[1756774919261,1.67613351,109120.0,109110.0,0.08231]
[1756774919466,1.91582418,109120.0,109110.0,0.08231]
[1756774920958,1.07230418,109120.0,109110.0,0.08231]
[1756774921563,0.83261351,109120.0,109110.0,0.08231]
[1756774921760,1.07230418,109120.0,109110.0,0.08231]
[1756774923063,1.19230418,109120.0,109110.0,0.08231]
[1756774926066,0.95261351,109120.0,109110.0,0.08231]
[1756774929965,1.19230418,109120.0,109110.0,0.04813]
[1756774930170,1.19230418,109120.0,109110.0,0.0825]
[1756774932768,1.21230418,109120.0,109110.0,0.0825]
[1756774933778,1.21530418,109120.0,109110.0,0.0825]
[1756774934276,1.19530418,109120.0,109110.0,0.0825]
[1756774935670,0.83561351,109120.0,109110.0,0.32219067]
[1756774935875,0.0956815,109120.0,109110.0,0.68219067]
[1756774936064,0.003,109120.0,109110.0,1.62432324]
[1756774936968,0.003,109120.0,109110.0,1.71080676]
[1756774937176,0.3608,109150.0,109140.0,0.08203]
[1756774937372,0.7317955,109150.0,109140.0,0.32172067]
[1756774938278,0.7317955,109150.0,109140.0,0.04766]
[1756774938471,0.80621762,109150.0,109140.0,0.08203]
[1756774938673,0.8154467,109150.0,109140.0,0.08203]
[1756774938879,0.7944512,109150.0,109140.0,0.08203]
[1756774939476,0.7954512,109150.0,109140.0,0.08203]
[1756774942483,0.7954512,109150.0,109140.0,0.32172067]
[1756774943383,0.7954512,109150.0,109140.0,1.1914686]
[1756774943384,0.351,109150.0,109140.0,1.1914686]
[1756774943681,0.001,109150.0,109140.0,1.5522686]
[1756774945377,0.001,109150.0,109140.0,1.6438854]
[1756774950584,0.001,109150.0,109140.0,1.9095854]
[1756774952386,0.09202039,109170.0,109150.0,0.0916026]
[1756774952587,0.09202039,109170.0,109160.0,1.16464067]
[1756774952886,0.09202039,109170.0,109160.0,1.52544067]
[1756774953385,0.01819798,109170.0,109160.0,1.61704187]
[1756774953686,0.60049067,109190.0,109170.0,0.08203]
[1756774953887,0.73171549,109190.0,109170.0,0.32172067]
[1756774954087,0.97140616,109190.0,109170.0,0.32172067]
[1756774954690,0.98065125,109190.0,109170.0,0.32172067]
[1756774955988,0.98565125,109190.0,109170.0,0.32172067]
[1756774956182,0.74596058,109190.0,109170.0,0.32172067]
[1756774956382,0.98565125,109190.0,109170.0,0.32172067]
[1756774956582,0.72504509,109190.0,109180.0,1.16519067]
[1756774956783,0.79966716,109190.0,109180.0,1.16519067]
[1756774957492,1.03935783,109190.0,109170.0,0.92546]
[1756774958287,1.03935783,109190.0,109170.0,1.16515067]
[1756774958791,1.03935783,109190.0,109180.0,0.03487]
[1756774959086,1.04035783,109190.0,109180.0,0.08266]
[1756774959787,1.03435783,109190.0,109180.0,0.08266]
[1756774959992,1.03835783,109190.0,109180.0,0.08266]
[1756774960492,0.80066716,109190.0,109180.0,0.08266]
[1756774961193,0.80066716,109190.0,109180.0,0.04779]
[1756774961793,0.80066716,109190.0,109180.0,0.02403]
[1756774962296,0.82159561,109190.0,109180.0,0.04779]
[1756774962897,0.82159561,109190.0,109180.0,0.08266]
[1756774963289,0.47159561,109190.0,109180.0,0.32235067]
[1756774963489,0.45066716,109190.0,109180.0,0.32235067]
[1756774964200,0.08986716,109190.0,109180.0,0.32235067]
[1756774964606,0.01524509,109190.0,109180.0,0.32235067]
[1756774965205,0.006,109190.0,109180.0,0.68315067]
[1756774965405,0.006,109190.0,109180.0,0.93315067]
[1756774965895,0.006,109190.0,109180.0,1.27315067]
[1756774966406,0.006,109190.0,109180.0,2.11579067]
[1756774966606,0.006,109190.0,109180.0,2.20737487]
[1756774970105,0.006,109190.0,109180.0,2.28053113]
[1756774972207,0.0269744,109190.0,109180.0,2.28053113]
[1756774973105,0.0249744,109190.0,109180.0,2.28053113]
[1756774974310,0.0249744,109190.0,109180.0,2.30115245]
[1756774976513,0.0249744,109190.0,109180.0,1.12723758]
[1756774976713,0.0249744,109190.0,109180.0,2.20932825]
[1756774976901,0.0249744,109190.0,109180.0,1.64684132]
[1756774977106,0.0249744,109190.0,109180.0,1.52573199]
[1756774981116,0.0249744,109190.0,109180.0,1.88653199]
[1756774982114,0.0249744,109190.0,109180.0,1.04377199]
[1756774982309,0.0249744,109190.0,109180.0,1.88629199]
[1756774982310,0.004,109190.0,109180.0,1.88629199]
[1756774982815,0.004,109190.0,109180.0,1.90629199]
[1756774983121,0.004,109190.0,109180.0,1.99787599]
[1756774983312,0.004,109190.0,109180.0,2.48756666]
[1756774983514,0.004,109190.0,109180.0,2.24787599]
[1756774984521,0.004,109190.0,109180.0,2.31983081]
[1756774985112,0.004,109190.0,109180.0,2.55952148]
[1756774985421,0.37918809,109220.0,109210.0,0.32359067]
[1756774985422,0.01838809,109220.0,109210.0,0.32359067]
[1756774985621,0.01838809,109220.0,109210.0,1.85843067]
[1756774985824,0.01838809,109220.0,109210.0,0.68439067]
[1756774986015,0.01838809,109220.0,109210.0,1.16755067]
[1756774986217,0.01838809,109220.0,109210.0,1.28866]
[1756774986418,0.01838809,109220.0,109210.0,1.89835067]
[1756774987323,0.02238809,109220.0,109210.0,1.89835067]
[1756774987518,0.004,109220.0,109210.0,1.89835067]
[1756774989322,0.004,109220.0,109210.0,1.98990957]
[1756774989713,0.004,109220.0,109210.0,1.65866]
[1756774990019,0.36999288,109250.0,109210.0,1.98389019]
[1756774990212,0.6306633,109250.0,109230.0,0.0839]
[1756774990414,0.6306633,109250.0,109230.0,0.92898]
[1756774990723,0.6306633,109250.0,109230.0,1.16867067]
[1756774991522,0.6336633,109250.0,109240.0,0.0839]
[1756774991723,0.64397263,109250.0,109240.0,0.0839]
[1756774991923,0.6336633,109250.0,109240.0,0.0839]
[1756774993021,0.39497263,109250.0,109240.0,0.0839]
[1756774994618,0.39497263,109250.0,109240.0,0.32359067]
[1756774995222,0.64497263,109250.0,109240.0,0.32359067]
[1756774996019,0.39497263,109250.0,109240.0,0.32359067]
[1756774996224,0.39297263,109250.0,109240.0,0.32359067]
[1756774997127,0.39297263,109250.0,109240.0,0.39620149]
[1756774997328,0.39297263,109250.0,109240.0,0.15651082]
[1756774997523,0.39297263,109250.0,109240.0,0.39620149]
[1756774998223,0.39297263,109250.0,109240.0,0.15651082]
[1756774998423,0.39297263,109250.0,109240.0,0.39620149]
[1756775000428,0.39297263,109250.0,109240.0,0.15651082]
[1756775000624,0.39297263,109250.0,109240.0,1.00427082]
[1756775000824,0.39297263,109250.0,109240.0,1.00459082]
[1756775002034,0.39297263,109250.0,109240.0,1.24428149]
[1756775003035,0.39297263,109250.0,109240.0,0.39620149]
[1756775003233,0.6326633,109250.0,109240.0,1.00419082]
[1756775005443,0.39297263,109250.0,109240.0,1.00419082]
[1756775008334,0.39297263,109250.0,109240.0,1.00876082]
[1756775010235,0.39097263,109250.0,109240.0,1.01276082]
[1756775012644,0.6306633,109250.0,109240.0,1.01276082]
[1756775013045,0.39097263,109250.0,109240.0,1.01276082]
[1756775013244,0.39097263,109250.0,109240.0,1.25245149]
[1756775013944,0.39097263,109250.0,109240.0,1.01276082]
[1756775014547,0.39097263,109250.0,109240.0,1.25245149]
[1756775014747,0.39097263,109250.0,109240.0,1.01276082]
[1756775014949,0.6306633,109250.0,109240.0,1.01276082]
[1756775015247,0.39097263,109250.0,109240.0,1.01276082]
[1756775017945,0.6306633,109250.0,109240.0,0.94015]
[1756775018146,1.2106633,109250.0,109240.0,0.94755]
[1756775018344,0.8806633,109250.0,109240.0,0.94755]
[1756775019939,0.8806633,109250.0,109240.0,0.94355]
[1756775020134,0.8806633,109250.0,109240.0,0.08947]
[1756775020644,1.2606633,109250.0,109240.0,0.09047]
[1756775020849,0.9006633,109250.0,109240.0,0.09047]
[1756775021151,0.9006633,109250.0,109240.0,0.08847]
[1756775021342,0.9006633,109250.0,109240.0,0.08947]
[1756775021848,0.64097263,109250.0,109240.0,0.08947]
[1756775022049,0.8806633,109250.0,109240.0,0.08947]
[1756775022555,1.2306633,109250.0,109240.0,0.02834]
[1756775022846,2.0855833,109250.0,109240.0,0.00557]
[1756775023053,2.13500951,109250.0,109240.0,0.00557]
[1756775023843,2.13500951,109250.0,109240.0,0.00457]
[1756775025240,2.0855833,109250.0,109240.0,0.00457]
[1756775027153,2.32527397,109250.0,109210.0,0.08289]
[1756775027353,0.60049067,109220.0,109210.0,0.08289]
[1756775027549,0.62147042,109220.0,109210.0,0.08289]
[1756775028558,0.38177975,109220.0,109210.0,0.08489]
[1756775028753,0.38177975,109220.0,109210.0,0.32458067]
[1756775030462,0.69177975,109220.0,109210.0,0.32458067]
[1756775031053,0.69177975,109220.0,109210.0,0.08489]
[1756775031054,0.38177975,109220.0,109210.0,0.08489]
[1756775032263,0.3608,109220.0,109210.0,0.08489]
[1756775043866,0.37953643,109230.0,109220.0,0.03384]
[1756775044070,0.74953643,109230.0,109220.0,0.08289]
[1756775045070,0.74953643,109230.0,109220.0,0.08389]
[1756775045666,0.37953643,109230.0,109220.0,0.08389]
[1756775045868,0.42953643,109230.0,109220.0,0.32358067]
[1756775046271,0.42953643,109230.0,109220.0,0.08389]
[1756775046464,0.37953643,109230.0,109220.0,0.08389]
[1756775047675,0.9592271,109230.0,109220.0,0.001]
[1756775047869,1.44891777,109230.0,109220.0,0.001]
[1756775048076,1.46962036,109230.0,109220.0,0.001]
[1756775049875,1.46962036,109230.0,109190.0,0.16766953]
[1756775050076,0.3608,109200.0,109190.0,0.6773602]
[1756775050971,0.60049067,109200.0,109190.0,0.17166953]
[1756775051180,0.98049067,109200.0,109190.0,0.10566559]
[1756775051384,2.26186134,109200.0,109190.0,0.004]
[1756775051576,2.30133609,109200.0,109190.0,0.004]
[1756775051874,2.40723637,109200.0,109160.0,0.11343394]
[1756775052082,0.8589584,109170.0,109150.0,0.16109394]
[1756775052384,0.60049067,109160.0,109150.0,0.02327]
[1756775052679,0.94049067,109160.0,109150.0,0.02327]
[1756775053069,0.3608,109160.0,109150.0,0.09614]
[1756775053472,1.23165706,109170.0,109160.0,0.03405]
[1756775053667,1.25165706,109170.0,109160.0,0.08148]
[1756775054073,1.26070917,109170.0,109160.0,0.08148]
[1756775055475,1.50039984,109170.0,109160.0,0.08148]
[1756775056070,1.50039984,109170.0,109160.0,0.04743]
[1756775056274,1.80039984,109170.0,109160.0,0.02327]
[1756775056579,1.80339984,109170.0,109160.0,0.02327]
[1756775056776,1.80339984,109170.0,109150.0,0.09614]
[1756775056980,0.60049067,109160.0,109150.0,0.04743]
[1756775057175,0.94049067,109160.0,109140.0,0.08148]
[1756775057479,0.60049067,109150.0,109140.0,0.08148]
[1756775058278,0.97049067,109150.0,109140.0,0.04743]
[1756775058882,0.97049067,109150.0,109140.0,0.08148]
[1756775059385,1.82249067,109150.0,109140.0,0.08148]
[1756775060087,1.81249067,109150.0,109140.0,0.08148]
[1756775060790,1.2128,109150.0,109140.0,0.08148]
[1756775061679,1.2128,109150.0,109140.0,0.32117067]
[1756775061879,0.3608,109150.0,109140.0,0.69117067]
[1756775063090,0.3608,109150.0,109140.0,0.69317067]
[1756775063973,0.3608,109150.0,109140.0,0.32317067]
[1756775064177,0.3608,109150.0,109140.0,0.67317067]
[1756775064685,0.3608,109150.0,109140.0,0.92317067]
[1756775064889,0.37947832,109160.0,109150.0,0.09614]
[1756775065088,0.37947832,109160.0,109150.0,0.70583067]
[1756775065283,0.37947832,109160.0,109150.0,0.33583067]
[1756775065789,0.37947832,109160.0,109150.0,0.09614]
[1756775066089,0.61916899,109160.0,109150.0,0.09614]
[1756775066889,0.61916899,109160.0,109150.0,0.04743]
[1756775067389,0.61916899,109160.0,109150.0,0.08148]
[1756775067884,0.37947832,109160.0,109150.0,0.33583067]
[1756775068091,0.37947832,109160.0,109150.0,0.64583067]
[1756775068991,0.37947832,109160.0,109150.0,0.09614]
[1756775071689,0.61916899,109160.0,109150.0,0.09614]
[1756775072388,0.37947832,109160.0,109150.0,0.09614]
[1756775072788,0.01867832,109160.0,109150.0,1.03824077]
[1756775073384,0.3608,109180.0,109150.0,1.46580087]
[1756775073588,0.3795672,109200.0,109180.0,0.1390132]
[1756775073894,0.3795672,109200.0,109190.0,0.08148]
[1756775075989,0.3795672,109200.0,109190.0,0.32117067]
[1756775076295,0.0187672,109200.0,109190.0,0.32117067]
[1756775076991,0.0187672,109200.0,109190.0,1.02354747]
[1756775077587,0.0187672,109200.0,109190.0,1.4673344]
[1756775078091,0.0187672,109200.0,109190.0,1.4653344]
[1756775078395,0.0187672,109200.0,109190.0,1.4673344]
[1756775080398,0.36989597,109220.0,109210.0,0.08198]
[1756775082199,0.3608,109220.0,109210.0,0.32167067]
[1756775082892,0.3618,109220.0,109210.0,0.32167067]
[1756775091707,0.3618,109220.0,109210.0,0.08198]
[1756775092006,0.3618,109220.0,109210.0,0.32167067]
[1756775100025,0.3618,109220.0,109210.0,0.08198]
[1756775100532,1.22213925,109220.0,109200.0,0.872]
[1756775100823,0.60049067,109210.0,109200.0,0.93022]
[1756775101123,0.3808,109210.0,109200.0,0.93022]
[1756775101321,0.3808,109210.0,109200.0,0.94507]
[1756775101822,0.40146526,109210.0,109200.0,0.94507]
[1756775103222,0.40146526,109210.0,109200.0,0.09683]
[1756775108424,0.40146526,109210.0,109200.0,0.08198]
[1756775109132,0.40146526,109210.0,109200.0,0.09687]
[1756775113534,0.40246526,109210.0,109200.0,0.09687]
[1756775114334,0.40246526,109210.0,109200.0,0.33656067]
[1756775115532,0.40246526,109210.0,109200.0,0.09687]
[1756775115734,0.02166526,109210.0,109200.0,0.93656067]
[1756775115934,0.02166526,109210.0,109200.0,1.62861924]
[1756775116135,0.001,109210.0,109200.0,1.62861924]
[1756775116333,0.02171852,109210.0,109200.0,1.38892857]
[1756775116632,0.02171856,109210.0,109200.0,1.38892857]
[1756775116822,0.3608,109220.0,109200.0,1.35335857]
[1756775117021,0.70151854,109220.0,109210.0,1.17191067]
[1756775118637,0.6818,109220.0,109210.0,1.17191067]
[1756775118835,0.70251534,109220.0,109210.0,1.17191067]
[1756775120139,0.70251534,109220.0,109210.0,0.93222]
[1756775120340,0.70251534,109220.0,109210.0,1.17191067]
[1756775121038,0.70151534,109220.0,109210.0,1.17191067]
[1756775122333,0.6808,109220.0,109210.0,1.17191067]
[1756775122635,0.3608,109220.0,109210.0,1.17191067]
[1756775122836,0.37953643,109230.0,109220.0,0.0853]
[1756775123142,0.01873643,109230.0,109220.0,0.69499067]
[1756775123941,0.01873643,109230.0,109220.0,0.0853]
[1756775124244,0.01873643,109230.0,109220.0,0.65499067]
[1756775124443,0.01873643,109230.0,109220.0,1.10734187]
[1756775124647,0.01873643,109230.0,109220.0,1.17334581]
[1756775124836,0.01973643,109230.0,109220.0,1.10734187]
[1756775125036,0.01973643,109230.0,109220.0,1.17334581]
[1756775125233,0.001,109230.0,109220.0,1.42334581]
[1756775125443,0.3608,109260.0,109250.0,0.10019]
[1756775125643,0.60960051,109260.0,109250.0,0.10019]
[1756775127046,0.61260051,109260.0,109250.0,0.10019]
[1756775133343,0.37290984,109260.0,109250.0,0.10019]
[1756775133544,0.61260051,109260.0,109250.0,0.10019]
[1756775134850,0.86260051,109260.0,109240.0,0.0853]
[1756775135152,0.60049067,109250.0,109240.0,0.02484]
[1756775135450,0.60049067,109250.0,109240.0,0.04968]
[1756775136052,0.60049067,109250.0,109240.0,0.08527]
[1756775136651,0.60049067,109250.0,109240.0,0.04968]
[1756775136848,0.60049067,109250.0,109230.0,0.92791]
[1756775137046,0.60049067,109240.0,109230.0,0.92791]
[1756775137449,0.3608,109240.0,109230.0,1.16760067]
[1756775141165,0.61867499,109250.0,109230.0,1.16760067]
[1756775141367,0.61867499,109250.0,109240.0,0.03559]
[1756775141568,0.61867499,109250.0,109240.0,0.08299]
[1756775142862,0.62067499,109250.0,109240.0,0.08299]
[1756775143672,0.38098432,109250.0,109240.0,0.08299]
[1756775143862,0.62067499,109250.0,109240.0,0.08299]
[1756775144259,0.38098432,109250.0,109240.0,0.32268067]
[1756775144465,0.38098432,109250.0,109240.0,0.08299]
[1756775144662,0.38098432,109250.0,109240.0,0.32268067]
[1756775145075,0.38098432,109250.0,109240.0,0.08299]
[1756775145974,0.38098432,109250.0,109240.0,0.32268067]
[1756775146473,0.38098432,109250.0,109240.0,0.08299]
[1756775147161,0.38098432,109250.0,109240.0,0.92875]
[1756775147466,0.38098432,109250.0,109240.0,1.16844067]
[1756775148062,0.38098432,109250.0,109240.0,0.92875]
[1756775149574,0.38098432,109250.0,109240.0,1.16844067]
[1756775151480,0.62067499,109250.0,109240.0,0.08299]
[1756775153082,0.62067499,109250.0,109240.0,0.02256]
[1756775153581,0.38098432,109250.0,109240.0,0.02256]
[1756775154879,0.38098432,109250.0,109240.0,0.26225067]
[1756775155484,0.62067499,109250.0,109240.0,0.02256]
[1756775155779,0.89138462,109250.0,109230.0,0.02029275]
[1756775155986,0.60049067,109240.0,109230.0,0.02029275]
[1756775156486,0.3608,109240.0,109230.0,0.02029275]
[1756775158585,0.3608,109240.0,109230.0,0.25998342]
[1756775159778,0.37898432,109250.0,109230.0,0.84121659]
[1756775159983,0.01818432,109250.0,109240.0,1.53754487]
[1756775160382,0.01818432,109250.0,109240.0,1.44601067]
[1756775160779,0.01818432,109250.0,109240.0,1.53754487]
[1756775161285,0.01818432,109250.0,109240.0,1.85332399]
[1756775161589,0.00613434,109250.0,109240.0,1.8700498]
[1756775162185,0.00813434,109250.0,109240.0,1.8700498]